Cogmind - Beta 14 @@@ ROGUE MODE // 2024.09.06 @ 19:58:17 Player: saltine Result: Escaped! Performance ------------- Evolutions (9) 4500 Regions Visited (30) 6000 Robots Destroyed (344) 1720 Value Destroyed (16352) 16352 Prototype IDs (51) 1020 Alien Tech Used (2) 400 Bonus (6228) 6228 TOTAL SCORE: 36220 Bonus ------- High Alert Combat Kills 1131 Follower Combat Kills 1094 Met Data Miner 300 Met Imprinter 300 Met Zhirov 300 Scanned by Researcher 500 Win 3000 Friendly Fire -397 Cogmind --------- Core Integrity 1284/1600 Matter 29/300 Energy 99/100 System Corruption 0% Temperature Cool (0) Movement Core (50) Location To Epsilon Eridani Parts ------- > --- POWER (3) -------- (None) > --- PROPULSION (6) --- (None) > --- UTILITY (13) ----- Core Analyzer System Shield > --- WEAPON (3) ------- (None) > --- INVENTORY (5) ---- Improved Treads Armored Medium Treads Experimental Energy Well (600) Peak State ------------ > --- POWER ------------ Neutrino Core Particle Reactor Light Particle Reactor > --- PROPULSION ------- Heavy Siege Treads Centrium Heavy Treads Centrium Heavy Treads > --- UTILITY ---------- Advanced Heat Sink Advanced Heat Sink Experimental Coolant Injector Huge Storage Unit Enhanced Optical Array Long-range Sensor Array Quantum Capacitor Advanced Transmission Jammer Backup Plating VII Centrium Medium Armor Plating > --- WEAPON ----------- Long-range Phase Cannon Advanced KE Penetrator > --- INVENTORY -------- Neutrino Core Light Antimatter Reactor Light Antimatter Reactor Light Antimatter Reactor Cooled Antimatter Reactor Light Quantum Reactor Improved Treads Improved Treads Advanced Medium Treads Heavy Siege Treads Biometal Medium Treads Advanced Heat Sink Experimental Energy Well Improved Matter Compressor Centrium Medium Armor Plating System Shield Improved System Shield Transdimensional Reconstructor Neutron Cannon Long-range Phase Cannon Long-range Phase Cannon Heavy Rocket Launcher Micro-nuke Launcher Micro-nuke Launcher [Rating: 174] Favorites ----------- Power Antimatter Reactor Engine Heavy Ion Engine Power Core Micro Fission Core Reactor Antimatter Reactor Propulsion Light Treads Treads Light Treads Leg Aluminum Leg Wheel Armored Wheel Flight Unit Cooled Cesium-ion Thruster Utility High-capacity Storage Unit Device Advanced Heat Sink Storage High-capacity Storage Unit Processor Core Analyzer Hackware Makeshift System Shield Protection Hardened Medium Armor Plating Weapon Neutron Cannon Energy Gun Beamcaster Energy Cannon Neutron Cannon Ballistic Gun Heavy Assault Rifle Ballistic Cannon Magnetic Acceleration Cannon Launcher Precision Grenade Launcher Special Weapon Improved Plasma Cutter Slashing Weapon Ripper Piercing Weapon Makeshift Spear Build | -11 -10 -10 -9 -9 -8 -7 -7 -7 -7 -6 -6 -6 -6 -6 -6 -6 -5 -5 -5 -5 -5 -4 -4 -4 -4 -4 -3 -3 -2 -1 ------- Run | Yrd Mat Min Mat Min Mat Fac Low Low Zio Pro Fac Was Fac Low Low Dat Pro Fac Upp Upp Zhi Pro Fac Ext Cet Arc Res Tes Res Acc Slots Evolved 18 | . . . 2 . 2 2 . . . . 2 . . . . . . 2 . . . . 2 . . . 2 . 2 2 Power 2 | . . . . . . . . . . . 1 . . . . . . . . . . . . . . . . . 1 . Propulsion 4 | . . . . . 1 1 . . . . . . . . . . . . . . . . 1 . . . 1 . . . Utility 11 | . . . 1 . 1 1 . . . . 1 . . . . . . 2 . . . . 1 . . . 1 . 1 2 Weapon 1 | . . . 1 . . . . . . . . . . . . . . . . . . . . . . . . . . . Parts Attached 368 | . 7 2 24 10 21 7 9 4 7 8 23 12 3 10 1 11 19 25 1 8 8 4 7 34 13 10 22 25 28 5 Power 31 | . 1 1 4 1 2 . . 1 . . 2 2 . 3 . 1 . 1 . . . . 2 3 1 1 . 2 3 . Engine 11 | . 1 1 3 1 1 . . 1 . . 1 . . 1 . 1 . . . . . . . . . . . . . . Core 8 | . . . 1 . 1 . . . . . . . . . . . . 1 . . . . 1 2 1 . . . 1 . Reactor 12 | . . . . . . . . . . . 1 2 . 2 . . . . . . . . 1 1 . 1 . 2 2 . Propulsion 59 | . 2 . 5 2 6 3 2 1 . 3 4 2 . . . 2 2 1 . 3 . 1 1 10 2 2 1 . 4 . Treads 55 | . 2 . 5 2 6 3 2 1 . 2 1 2 . . . 2 2 1 . 3 . 1 1 10 2 2 1 . 4 . Leg . | . . . . . . . . . . . . . . . . . . . . . . . . . . . . . . . Wheel 2 | . . . . . . . . . . 1 1 . . . . . . . . . . . . . . . . . . . Hover . | . . . . . . . . . . . . . . . . . . . . . . . . . . . . . . . Flight 2 | . . . . . . . . . . . 2 . . . . . . . . . . . . . . . . . . . Utility 175 | . 2 . 6 3 5 2 6 1 3 2 12 4 2 4 . 6 10 16 . 3 6 2 2 13 5 4 16 22 17 1 Device 90 | . 1 . 1 1 3 . 5 1 2 1 5 1 1 1 . 4 7 7 . 2 4 1 1 6 2 3 9 12 8 1 Storage 11 | . 1 . 3 1 . 1 . . . . . 1 . . . 1 . . . . 1 . . . 1 . . 1 . . Processor 11 | . . . . . 1 1 . . 1 . 4 . . 2 . . . . . . . . . 1 . . . . 1 . Hackware 10 | . . . . . . . . . . . . . . . . . . 1 . . . . 1 1 . . 4 . 3 . Protection 53 | . . . 2 1 1 . 1 . . 1 3 2 1 1 . 1 3 8 . 1 1 1 . 5 2 1 3 9 5 . Artifact . | . . . . . . . . . . . . . . . . . . . . . . . . . . . . . . . Weapon 103 | . 2 1 9 4 8 2 1 1 4 3 5 4 1 3 1 2 7 7 1 2 2 1 2 8 5 3 5 1 4 4 Energy Gun 10 | . . . 1 . 5 . 1 1 1 . . . . . . . . . . . . . . . . 1 . . . . Energy Cannon 15 | . . . 1 . . . . . . . . . . . . . 1 2 . . . . . 4 3 . 2 . 2 . Ballistic Gun 30 | . 2 . 7 2 3 1 . . . 1 2 2 1 . . . . 3 . . . . 1 2 . 1 1 1 . . Ballistic Cannon 21 | . . 1 . 2 . 1 . . 1 2 . . . 2 1 . 4 1 . . . . 1 1 2 1 1 . . . Launcher 20 | . . . . . . . . . 1 . 2 1 . 1 . . 2 1 1 1 1 1 . 1 . . 1 . 2 4 Special Weapon 2 | . . . . . . . . . . . . . . . . . . . . 1 1 . . . . . . . . . Impact Weapon . | . . . . . . . . . . . . . . . . . . . . . . . . . . . . . . . Slashing Weapon 3 | . . . . . . . . . . . 1 1 . . . 1 . . . . . . . . . . . . . . Piercing Weapon 2 | . . . . . . . . . 1 . . . . . . 1 . . . . . . . . . . . . . . Special Melee Weapon . | . . . . . . . . . . . . . . . . . . . . . . . . . . . . . . . Unidentified Prototypes 26 | . . . 3 . . 1 1 1 3 . 4 . . . . . 1 1 . . 4 . . . 1 2 2 1 1 . Corrupted Parts 7 | . . . . . . . . . . . . . . . . . 3 . . . . . . . . 4 . . . . System Corruption 27 | . . . . . . . . . . . . . . . . . 7 . . . . . . . . 20 . . . . Parts Lost 122 | . 3 2 5 10 16 2 . . . 8 12 . 2 3 . 3 3 1 . 1 . 2 3 11 3 . 2 5 19 6 Power 17 | . 1 2 1 1 2 . . . . . 1 . . 1 . . 1 . . . . . 2 1 . . . 2 2 . Propulsion 37 | . 1 . 1 2 5 2 . . . 3 5 . . . . 2 . 1 . 1 . 1 1 4 1 . . . 3 4 Utility 36 | . . . 1 2 3 . . . . 2 3 . 2 1 . 1 1 . . . . 1 . 3 2 . 1 2 10 1 Weapon 32 | . 1 . 2 5 6 . . . . 3 3 . . 1 . . 1 . . . . . . 3 . . 1 1 4 1 Highest Loss Streak 10 | . 3 1 1 10 9 1 . . . 6 4 . 2 2 . 3 1 1 . 1 . 1 1 4 3 . 1 2 5 5 To Critical Strikes 4 | . . . . . . . . . . 1 . . . . . . . 1 . 1 . . . 1 . . . . . . Average Slot Usage (%) 84 | . 98 95 94 97 79 94 100 100 97 95 74 70 84 83 85 83 80 76 78 81 82 82 75 83 79 88 74 72 69 28 Engine 3 | . 13 9 9 10 3 7 7 7 7 7 4 . . 5 6 5 . . . . . . . . . . . . . . Core 1 | . . . . . 5 . . . . . . . . . . . . 2 5 5 5 5 2 5 5 4 . . . . Reactor 3 | . . . . . . . . . . . . 5 13 6 6 6 6 5 5 5 5 5 3 3 5 5 9 9 6 . Treads 18 | . 3 28 21 21 22 29 30 30 30 27 11 10 13 13 13 12 12 11 11 14 17 16 13 20 21 20 14 14 15 14 Device 13 | . 12 14 10 10 15 7 15 15 14 12 10 2 4 5 6 7 13 11 11 15 16 17 15 12 21 23 18 21 21 4 Storage 6 | . 14 14 14 11 9 7 7 7 7 7 4 5 6 6 6 5 6 5 5 5 5 5 5 5 5 5 4 4 3 . Processor 8 | . . . . . 2 10 7 7 10 15 15 28 18 17 20 20 13 11 11 11 11 11 10 7 5 5 4 4 4 4 Protection 5 | . . . 4 10 2 7 7 7 2 . 4 2 6 6 6 4 5 10 11 6 5 4 5 8 9 7 5 6 3 . Energy Gun 2 | . . . . . 7 11 7 7 15 11 . . . . . . . . . . . . . . . 3 . . . . Energy Cannon 2 | . . . . . . . . . . . . . . . . . . 6 11 11 11 11 6 4 3 5 3 4 3 . Ballistic Gun 6 | . 27 15 31 29 7 6 7 6 . 2 3 4 13 7 2 . . 2 . . . . 4 1 3 . . . 2 . Ballistic Cannon 3 | . . 12 . 2 3 3 7 7 1 1 7 . . 4 9 . 17 3 . . . . 3 5 . 6 8 2 . . Slashing Weapon 1 | . . . . . . . . . . . 1 5 6 6 6 12 . . . . . . . . . . . . . . Peak Build Rating 174 | . 10 10 24 23 26 36 52 52 54 56 48 83 83 79 79 80 82 96 95 97 99 100 108 102 118 135 160 163 174 68 Average Rating 70 | . 9 9 18 21 18 30 44 51 51 50 41 65 81 77 78 76 77 90 92 93 92 94 92 85 106 116 152 155 146 58 On Entrance 68 | 6 6 10 9 22 17 26 36 51 51 54 41 45 83 73 79 79 80 76 91 91 92 97 98 98 89 116 135 146 162 62 Naked Turns . | . . . . . . . . . . . . . . . . . . . . . . . . . . . . . . . Heaviest Build 183 | 10 28 30 103 101 63 67 70 71 74 70 73 88 95 94 94 83 101 113 112 117 113 113 108 132 175 178 183 179 163 2 Greatest Support 230 | 20 40 40 44 45 65 82 96 96 96 96 12 140 140 140 140 140 140 140 140 140 124 124 124 123 139 173 230 230 230 3 Greatest Overweight (x) 6 | . 1 . 2 2 1 . . . . . 6 . . . . . . . . . . . 1 1 1 1 . . 4 . Average Overweight (x) . | . . . . 1 . . . . . . 2 . . . . . . . . . . . . . . 1 . . . . Largest Inventory Capacity 30 | . 15 15 30 25 20 20 20 20 20 20 20 20 20 20 20 20 20 20 20 20 20 20 20 20 25 25 25 25 25 5 Average Capacity 19 | . 12 15 16 20 20 20 20 20 20 20 16 17 20 20 20 17 20 20 20 20 20 20 20 20 22 25 25 25 24 5 Most Carried 25 | . 15 11 19 19 20 20 20 20 20 20 20 20 20 20 20 20 20 20 20 20 20 20 19 20 25 25 25 25 25 5 Average Carried 17 | . 10 10 14 16 10 19 19 19 19 19 16 13 19 19 19 15 19 19 19 19 19 19 17 18 20 24 23 24 18 3 Final Capacity 25 | 8 15 15 25 20 20 20 20 20 20 20 5 20 20 20 20 20 20 20 20 20 20 20 20 20 25 25 25 25 5 5 Final Carried 25 | 6 11 11 18 11 18 20 20 20 20 16 5 20 20 20 20 19 20 20 20 19 19 18 19 19 24 25 25 24 5 3 Class Distribution -------------------- 32% | Scavenger-Mutant 22% | Scavenger-Gunner 15% | Scavenger-Tank 12% | Mutant 3% | Scavenger-Skirmisher 3% | Tank Dominant Class ---------------- Mutant | -10/Materials Mutant | -10/Mines Scavenger-Tank | -9/Materials Tank | -9/Mines Scavenger-Mutant | -8/Materials Scavenger-Tank | -7/Factory Scavenger-Gunner | -7/Lower Caves Scavenger-Gunner | -7/Lower Caves Scavenger-Gunner | -7/Zion Scavenger-Skirmisher | -6/Proximity Caves Scavenger-Mutant | -6/Factory Mutant | -6/Waste Assassin | -6/Factory Scavenger-Mutant | -6/Lower Caves Scavenger-Mutant | -6/Lower Caves Scavenger-Gladiator | -6/Data Miner Scavenger-Gunner | -5/Proximity Caves Scavenger-Tank | -5/Factory Scavenger-Mutant | -5/Upper Caves Scavenger-Mutant | -5/Upper Caves Scavenger-Mutant | -5/Zhirov Scavenger-Mutant | -4/Proximity Caves Derelict-Gunner | -4/Factory Scavenger-Mutant | -4/Extension Scavenger-Mutant | -4/Cetus Scavenger-Tank | -4/Archives Gunner | -3/Research Scavenger-Mutant | -3/Testing Scavenger-Mutant | -2/Research Mutant | -1/Access Resources | -11 -10 -10 -9 -9 -8 -7 -7 -7 -7 -6 -6 -6 -6 -6 -6 -6 -5 -5 -5 -5 -5 -4 -4 -4 -4 -4 -3 -3 -2 -1 ----------- Run | Yrd Mat Min Mat Min Mat Fac Low Low Zio Pro Fac Was Fac Low Low Dat Pro Fac Upp Upp Zhi Pro Fac Ext Cet Arc Res Tes Res Acc Matter Collected 10086 | 200 582 201 809 224 490 40 407 100 80 196 555 365 144 312 28 282 298 321 314 147 218 281 419 1105 171 298 433 560 232 274 Remotely 614 | . . . . . . . 230 . . . 102 . . . . 125 41 116 . . . . . . . . . . . . Salvage Created 14510 | . 699 262 1765 283 1021 214 216 85 . 155 451 207 201 236 . 223 184 427 215 310 218 269 592 1117 369 569 444 2210 1015 553 Parts 647 | . 41 10 100 25 53 10 9 5 . 2 23 1 5 13 . 6 15 23 8 12 3 9 33 32 13 24 14 106 29 23 Haulers Intercepted 6 | . 1 . 3 . 2 . . . . . . . . . . . . . . . . . . . . . . . . . Recyclers Shooed 6 | . . . . . 1 . . . . . 4 . . . . . . . . . . . . . . . 1 . . . Parts Field Recycled . | . . . . . . . . . . . . . . . . . . . . . . . . . . . . . . . Retrieved Matter . | . . . . . . . . . . . . . . . . . . . . . . . . . . . . . . . Parts Self-Destructed 86 | . . . . . . . 10 13 . 10 . . . 9 . . 12 . 8 8 2 14 . . . . . . . . Prevented 8 | . . . . . . . 1 7 . . . . . . . . . . . . . . . . . . . . . . Kills | -11 -10 -10 -9 -9 -8 -7 -7 -7 -7 -6 -6 -6 -6 -6 -6 -6 -5 -5 -5 -5 -5 -4 -4 -4 -4 -4 -3 -3 -2 -1 ------- Run | Yrd Mat Min Mat Min Mat Fac Low Low Zio Pro Fac Was Fac Low Low Dat Pro Fac Upp Upp Zhi Pro Fac Ext Cet Arc Res Tes Res Acc Combat Hostiles Destroyed 296 | . 18 8 35 12 27 5 5 1 . 4 15 1 4 4 . 3 12 16 4 10 . 7 9 18 4 4 9 32 14 15 Melee 3 | . . . . . . . . . . . . . . . . 3 . . . . . . . . . . . . . . Guns 113 | . 18 5 35 9 17 3 3 1 . . 2 . 4 4 . . . 2 . . . . 5 3 . . . 2 . . Cannons 109 | . . 3 . 3 10 1 2 . . . 7 . . . . . 3 8 2 3 . 5 4 14 1 4 4 26 9 . AOE 60 | . . . . . . . . . . 4 6 1 . . . . 9 6 2 6 . 2 . . . . 4 . 5 15 Classes Destroyed 23 | . 4 . 3 4 1 . . 1 . . 2 1 . 1 . . . . . . . . 2 . . 1 . 1 2 . Worker 15 | . 1 . . . 1 . . . . . 1 . . . . . . 1 . . . . 3 . . . 1 2 . 5 Builder 8 | . . . . . . . . . . . . . . . . . . . . . . . 1 2 . . . 1 . 4 Tunneler 1 | . . . . 1 . . . . . . . . . . . . . . . . . . . . . . . . . . Hauler 6 | . 1 . 3 . 2 . . . . . . . . . . . . . . . . . . . . . . . . . Recycler 2 | . . . 1 . . . . . . . . . . . . . . . . . . . . . . . . . . 1 Minesweeper 3 | . . . . . . . . 2 . . . . . 1 . . . . . . . . . . . . . . . . Mechanic 3 | . . . . . . . . . . . . . . . . . . . . . . . . . . . . . 2 1 Operator 9 | . . . . . . . . . . . . . . . . . . . . . . . . . . 9 . . . . Watcher 3 | . . . . . . . . . . . . . . . . . . . . . . . 1 . 1 . . . . 1 Swarmer 58 | . 6 3 . 4 6 . . . . . 4 . . . . . 9 9 . 6 . . . . . . . 3 . 8 Grunt 122 | . 12 5 25 1 16 3 3 1 . 4 6 . 2 . . . 1 4 3 3 . 4 2 . . . 5 14 4 4 Brawler 9 | . . . 2 . . . 1 . . . . . 1 . . . . . 1 . . . . . . . . 2 2 . Duelist 7 | . . . . 1 1 . . . . . . . . . . . . . . . . . . 3 . . . . 2 . Researcher 1 | . . . . . . . . . . . . . . . . . . . . . . . . . . . . 1 . . Sentry 36 | . . . 8 . 3 2 1 . . . 1 . 1 . . . 1 1 . 1 . . 1 9 . 4 1 . 2 . Demolisher 2 | . . . . 2 . . . . . . . . . . . . . . . . . . . . . . . . . . Hunter 16 | . . . . . 1 . . . . . . . . 2 . . . . . . . 2 2 2 . . 2 4 . 1 Programmer 26 | . . . . . . . . . . . 3 . . 1 . . . 2 . . . 1 4 1 . . . 9 3 2 Heavy 1 | . . . . . . . . . . . . . . . . . . . . . . . . . . . . . 1 . Behemoth 5 | . . . . . . . . . . . 1 . . . . . 1 . . . . . . 2 . . 1 . . . Compactor 1 | . . . . . . . . . . . . 1 . . . . . . . . . . . . . . . . . . Cetus Guard 4 | . . . . . . . . . . . . . . . . . . . . . . . . . 4 . . . . . Enhanced Grunt 3 | . . . . . . . . . . . . . . . . 3 . . . . . . . . . . . . . . Decomposer 1 | . . . . . . . . . . . . . . . . . . . 1 . . . . . . . . . . . Assembled 4 | . . . . 4 . . . . . . . . . . . . . . . . . . . . . . . . . . Wasp 1 | . . . . . . . . . . 1 . . . . . . . . . . . . . . . . . . . . Thug 1 | . . . . . . . . . . . . . . . . . . . . . . . . 1 . . . . . . Butcher 1 | . . . . . . . . . . . . . . . . . . . . . . . . 1 . . . . . . Mutant 1 | . . . . . . . . . . . . . . 1 . . . . . . . . . . . . . . . . Best Kill Streak 9 | . 5 3 6 4 8 3 3 1 . 3 4 1 2 1 . 1 5 6 4 4 . 4 7 4 4 3 6 5 5 9 Combat Bots Only 8 | . 5 3 5 4 8 3 3 1 . 3 4 1 2 1 . 1 5 5 4 4 . 4 2 3 3 3 6 4 4 5 Max Kills in Single Turn 4 | . 1 1 2 2 1 1 1 1 . 2 3 1 1 1 . 1 4 3 1 2 . 2 2 2 1 1 2 1 4 3 Gunslinging 1 | . . . 1 . . . . . . . . . . . . . . . . . . . . . . . . . . . Exploded 4 | . . . . . . . . . . 2 3 1 . . . . 4 2 1 2 . 1 . . . . 2 . 3 3 Melee 1 | . . . . . . . . . . . . . . . . 1 . . . . . . . . . . . . . . Uniques/NPCs Destroyed . | . . . . . . . . . . . . . . . . . . . . . . . . . . . . . . . Combat | -11 -10 -10 -9 -9 -8 -7 -7 -7 -7 -6 -6 -6 -6 -6 -6 -6 -5 -5 -5 -5 -5 -4 -4 -4 -4 -4 -3 -3 -2 -1 -------- Run | Yrd Mat Min Mat Min Mat Fac Low Low Zio Pro Fac Was Fac Low Low Dat Pro Fac Upp Upp Zhi Pro Fac Ext Cet Arc Res Tes Res Acc Hostile Shots Fired 1937 | . 75 52 102 57 235 98 27 5 . 70 146 . 67 48 . 17 61 72 5 35 . 61 76 136 32 11 54 212 113 70 Missed 525 | . 22 17 28 14 61 36 9 1 . 21 49 . 20 8 . 4 16 21 2 4 . 18 18 40 7 4 11 44 23 27 Damage Taken 27528 | . 583 437 1058 1151 2368 560 163 55 . 974 1691 . 794 681 . 603 846 1031 118 474 . 599 1119 2639 485 141 934 3357 3674 993 Core 3001 | . 158 83 62 223 430 44 20 . . 30 129 . 48 16 . 48 . 107 . 67 . 49 55 85 17 . 47 92 875 316 Absorbed by Shields 617 | . . . . . . . 22 . . . . . . . . . . . . 118 . 226 . 251 . . . . . . Reduced by Siege Mode 1231 | . . . . . . . . . . . . . 80 65 . 49 62 32 . 12 . 26 21 . 10 8 103 400 244 119 Ignored by Resistances 299 | . . . . . . . . . . . 34 . . . . . . . . . . . . 24 202 39 . . . . Regen/Repaired (Parts) 901 | . . . . . 110 . . . 108 . . . 683 . . . . . . . . . . . . . . . . . Core Remaining (%) 61 | 100 . 3 . 28 21 . . . . 86 . . . . . . 71 . . . . 77 . . . 86 . 89 33 80 Volleys Fired 1209 | . 77 28 80 20 134 17 9 25 . 13 41 2 30 15 . . 16 54 9 13 6 16 54 67 18 66 43 232 100 24 Largest 3 | . 2 2 3 3 3 3 3 2 . 3 3 1 2 2 . . 3 2 2 3 1 3 3 3 1 3 3 2 1 1 Hottest 219 | . 40 55 79 97 165 174 139 138 . 192 124 39 66 86 . . 200 180 180 219 90 219 215 208 110 204 219 162 105 49 Shots Fired 1985 | . 154 56 233 56 235 51 27 32 . 34 87 3 44 31 2 . 39 60 11 23 6 32 98 159 18 82 54 234 100 24 Gun 961 | . 154 32 233 46 164 39 18 25 . 23 32 1 44 25 1 . . 3 . . . . 35 22 . 55 4 5 . . Cannon 955 | . . 24 . 10 71 12 9 7 . 1 51 . . 6 1 . 35 55 8 18 6 26 63 136 18 27 46 229 96 . Launcher 69 | . . . . . . . . . . 10 4 2 . . . . 4 2 3 5 . 6 . 1 . . 4 . 4 24 Special . | . . . . . . . . . . . . . . . . . . . . . . . . . . . . . . . Kinetic 1126 | . 154 56 233 56 147 24 18 10 . 6 83 1 44 31 2 . 29 5 . . . . 64 117 . 22 15 9 . . Thermal 772 | . . . . . 88 27 9 22 . 18 . . . . . . 6 53 8 18 6 26 34 41 . 60 35 225 96 . Explosive 69 | . . . . . . . . . . 10 4 2 . . . . 4 2 3 5 . 6 . 1 . . 4 . 4 24 Electromagnetic 18 | . . . . . . . . . . . . . . . . . . . . . . . . . 18 . . . . . Robot Hit Streak 26 | . 19 15 19 8 16 11 5 4 . 4 6 7 17 10 . . 13 22 4 9 3 10 10 18 9 20 18 26 18 8 Robot Miss Streak 10 | . 4 3 5 3 3 3 4 4 . 5 10 . 3 2 . . 2 5 1 1 1 2 4 4 4 2 2 5 1 1 Penetration Max 2 | . . . . . . . . . . . . . . . . . . 1 . . . . 2 2 . . 1 1 . . Secondary Targets 23 | . 7 1 10 2 2 . . . . . . . 1 . . . . . . . . . . . . . . . . . Max Gunslinging Chain 1 | . 1 1 1 1 1 . . . . . . . 1 . . . . . . . . . . . . . . . . . Capacitor 344 | . . . . . . . . . . . . . . . . . . . . . . . . . . . 31 217 96 . Shots Hit Robots 1315 | . 101 35 156 35 170 34 19 16 . 16 56 2 31 22 . 16 26 30 6 17 5 21 49 105 12 63 31 163 62 16 Core Hits 718 | . 38 17 58 21 62 16 19 6 . 24 60 3 11 11 . 7 20 21 10 15 3 17 25 49 5 28 29 63 38 42 Critical Kills 9 | . . . 2 . . . . . . . . . 1 . . . . . . 1 . . . 2 . . 1 2 . . Critical Parts Destroyed 5 | . 1 1 2 . 1 . . . . . . . . . . . . . . . . . . . . . . . . . Critical Strikes 43 | . 1 1 4 1 7 2 . 2 . . 3 . 1 . . 1 . . . 1 . . 3 7 1 3 3 2 . . Burn 8 | . . . . . 5 1 . 2 . . . . . . . . . . . . . . . . . . . . . . Meltdown 5 | . . . . . . . . . . . . . . . . . . . . 1 . . . 1 . . 1 2 . . Destroy 10 | . 1 1 4 . 1 . . . . . 1 . 1 . . . . . . . . . . 1 . . . . . . Blast 18 | . . . . 1 1 1 . . . . 2 . . . . . . . . . . . 3 5 . 3 2 . . . Corrupt 1 | . . . . . . . . . . . . . . . . . . . . . . . . . 1 . . . . . Sever 1 | . . . . . . . . . . . . . . . . 1 . . . . . . . . . . . . . . Melee Attacks 60 | . . . . . . . . . . . 4 . 2 15 . 39 . . . . . . . . . . . . . . Impact . | . . . . . . . . . . . . . . . . . . . . . . . . . . . . . . . Slashing 56 | . . . . . . . . . . . 4 . 2 15 . 35 . . . . . . . . . . . . . . Piercing 4 | . . . . . . . . . . . . . . . . 4 . . . . . . . . . . . . . . Sneak Attacks 3 | . . . . . . . . . . . . . . 1 . 2 . . . . . . . . . . . . . . Combat Hostiles . | . . . . . . . . . . . . . . . . . . . . . . . . . . . . . . . Follow-up Attacks 7 | . . . . . . . . . . . . . . . . 7 . . . . . . . . . . . . . . Damage Inflicted 46256 | . 1070 452 2561 628 2496 610 378 336 . 1556 2106 244 657 469 . 599 1475 2143 547 1041 176 1611 1761 3717 583 2181 2086 6460 3921 4392 Guns 11582 | . 1065 162 2545 479 1588 424 263 336 . 282 480 . 657 323 . . . 76 . . . . 745 396 . 1553 80 128 . . Cannons 20681 | . . 273 . 139 847 186 115 . . 20 723 . . 85 . . 792 1098 172 458 176 636 1012 3253 583 628 855 6292 2338 . Explosions 13079 | . . . . . . . . . . 1254 903 244 . . . . 683 959 375 583 . 975 . 54 . . 1076 . 1583 4390 Melee 660 | . . . . . . . . . . . . . . 61 . 599 . . . . . . . . . . . . . . Ramming 254 | . 5 17 16 10 61 . . . . . . . . . . . . 10 . . . . 4 14 . . 75 40 . 2 Kinetic 14843 | . 1065 435 2545 618 1325 341 258 28 . 120 1203 . 657 408 . . 635 109 . . . . 1318 2563 . 492 467 256 . . Thermal 18019 | . . . . . 1110 269 120 308 . 182 . . . . . . 157 1568 172 533 176 696 439 1086 . 1689 538 6164 2812 . Explosive 11843 | . . . . . . . . . . 1254 903 244 . . . . 683 456 375 508 . 915 . . . . 1006 . 1109 4390 Electromagnetic 637 | . . . . . . . . . . . . . . . . . . . . . . . . 54 583 . . . . . Impact . | . . . . . . . . . . . . . . . . . . . . . . . . . . . . . . . Slashing 593 | . . . . . . . . . . . . . . 61 . 532 . . . . . . . . . . . . . . Piercing 67 | . . . . . . . . . . . . . . . . 67 . . . . . . . . . . . . . . Highest Corruption 20 | . . . . . . 3 3 3 3 . 4 4 9 11 11 11 18 3 . . . . 6 7 7 20 . 15 17 . Average Corruption 7 | . . . . . . 2 3 3 3 . 3 4 4 10 11 11 11 2 . . . . 4 6 7 7 . 9 14 . Corruption Purged 10 | . . . . . . . . . . . . . . . . . . 3 . . . . . . . 7 . . . . Corruption Blocked . | . . . . . . . . . . . . . . . . . . . . . . . . . . . . . . . Effects 426 | . . . . . . 7 26 20 3 . 7 19 12 47 26 34 34 15 . . . . 5 81 13 14 . 31 32 . Message Errors 109 | . . . . . . 1 10 9 . . 1 3 4 11 8 8 13 3 . . . . . 18 4 3 . 5 8 . Matter Fused 101 | . . . . . . 3 5 2 . . 3 4 3 15 3 7 6 5 . . . . 1 22 2 7 . 5 8 . Heat Flow Errors 46 | . . . . . . . 4 1 1 . . 1 2 6 2 5 5 2 . . . . 1 4 2 2 . 1 7 . Energy Discharges 58 | . . . . . . 2 3 4 2 . 1 4 1 4 5 5 2 1 . . . . 1 9 2 . . 8 4 . Parts Rejected 6 | . . . . . . . . . . . . . 1 1 . 1 . 1 . . . . . 2 . . . . . . Parts Fused 6 | . . . . . . . . . . . . 1 . 2 . . 1 . . . . . . 1 1 . . . . . Data Loss (minor) 50 | . . . . . . 1 3 1 . . 2 4 1 5 3 5 5 2 . . . . 1 9 2 2 . 3 1 . Data Loss (major) 15 | . . . . . . . 1 . . . . 1 . . 1 2 2 . . . . . 1 5 . . . 1 1 . Misfires 12 | . . . . . . . . 2 . . . 1 . 1 2 . . . . . . . . 5 . . . 1 . . Alerts 10 | . . . . . . . . . . . . . . 2 2 . . 1 . . . . . 4 . . . . 1 . Misdirections 3 | . . . . . . . . . . . . . . . . 1 . . . . . . . . . . . . 2 . Weapon Failures 10 | . . . . . . . . 1 . . . . . . . . . . . . . . . 2 . . . 7 . . Overload Shots . | . . . . . . . . . . . . . . . . . . . . . . . . . . . . . . . Overflow Damage 1055 | . . . . 4 3 22 . . . 16 48 . . . . . 9 120 18 71 25 61 19 69 19 . 6 150 142 253 Projectiles 493 | . . . . 4 3 22 . . . . 9 . . . . . . 32 18 11 25 45 19 69 19 . . 150 67 . Explosions 562 | . . . . . . . . . . 16 39 . . . . . 9 88 . 60 . 16 . . . . 6 . 75 253 Melee . | . . . . . . . . . . . . . . . . . . . . . . . . . . . . . . . Knockbacks 34 | . . 5 1 . 7 . . . . . 4 . . . . . 1 . . . . . 7 8 . . . 1 . . Impact 1 | . . . 1 . . . . . . . . . . . . . . . . . . . . . . . . . . . Kinetic 31 | . . 5 . . 7 . . . . . 4 . . . . . 1 . . . . . 6 7 . . . 1 . . Secondary 2 | . . . . . . . . . . . . . . . . . . . . . . . 1 1 . . . . . . Self-Inflicted Damage 674 | . . . . . . . . . . 2 137 . . . . . . 33 60 49 . 28 . . . . . . 341 24 Shots 14 | . . . . . . . . . . 1 2 . . . . . . 1 1 2 . 1 . . . . . . 5 1 Rammed 27 | . . 2 2 2 12 . . . . . 1 . . . . . . 1 . . . . . 2 . . 3 . . 2 Targets Rammed 32 | . 2 2 2 2 13 . . . . . 1 . . . . . . 1 . . . . 1 2 . . 3 1 . 2 Kicked 2 | . 2 . . . . . . . . . . . . . . . . . . . . . . . . . . . . . Crushed 3 | . . . . . 1 . . . . . . . . . . . . . . . . . 1 . . . . 1 . . Highest Temperature 570 | . 22 2 14 12 193 335 247 261 189 342 260 84 358 262 241 233 204 196 75 207 . 190 254 368 241 208 195 402 570 8 Average Temperature 93 | . 11 1 3 7 63 131 72 88 101 158 45 47 145 119 103 84 63 34 41 90 . 81 77 85 35 62 106 99 130 8 Received Heat Transfer 4525 | . 279 219 444 126 936 204 66 . . 270 240 . 393 . . . 96 225 27 81 . 112 105 85 18 18 42 359 99 81 Effects 15 | . . . . . . 1 . . . 1 . . 3 . . 1 . . . . . . . . . . . . 9 . Shutdowns 4 | . . . . . . 1 . . . . . . . . . . . . . . . . . . . . . . 3 . Energy Bleed 2 | . . . . . . . . . . 1 . . . . . . . . . . . . . . . . . . 1 . Interference 3 | . . . . . . . . . . . . . 2 . . 1 . . . . . . . . . . . . . . Short Circuit 1 | . . . . . . . . . . . . . 1 . . . . . . . . . . . . . . . . . Damage (minor) 1 | . . . . . . . . . . . . . . . . . . . . . . . . . . . . . 1 . Damage (major) 2 | . . . . . . . . . . . . . . . . . . . . . . . . . . . . . 2 . Damage (core) 2 | . . . . . . . . . . . . . . . . . . . . . . . . . . . . . 2 . Siege Activations 45 | . . . . . . . . . . . . . 1 2 . 1 2 4 1 2 . 2 2 . 1 4 2 13 6 2 Total Turns 1020 | . . . . . . . . . . . . . 59 34 . 25 24 65 9 28 . 25 32 . 22 107 37 218 79 256 Longest Duration 151 | . . . . . . . . . . . . . 59 30 . 25 18 18 9 23 . 21 19 . 22 70 26 35 25 151 Robots Corrupted 4 | . . . . . . . . . . . . . . . . . . . . . . . . . 4 . . . . . Combat Hostiles 3 | . . . . . . . . . . . . . . . . . . . . . . . . . 3 . . . . . Parts Fried 6 | . . . . . . . . . . . . . . . . 1 . . . . . . . . 5 . . . . . Impact Corruptions . | . . . . . . . . . . . . . . . . . . . . . . . . . . . . . . . Robots Melted 8 | . . . . . . 1 . . . . . . . . . . . . . 1 . . . 1 . . 1 4 . . Combat Hostiles 8 | . . . . . . 1 . . . . . . . . . . . . . 1 . . . 1 . . 1 4 . . Parts Melted 32 | . . . . . 3 3 . . . . . . . . . . . . . . . 1 . . . 2 4 16 3 . Heat Transferred 16734 | . . . . . 2923 666 259 703 . 296 . . . . . . . 437 148 396 157 346 259 909 . 1665 494 5864 1212 . Parts Sabotaged . | . . . . . . . . . . . . . . . . . . . . . . . . . . . . . . . Parts Stolen . | . . . . . . . . . . . . . . . . . . . . . . . . . . . . . . . Parts Stripped . | . . . . . . . . . . . . . . . . . . . . . . . . . . . . . . . Power Chain Reactions 7 | . . . . . . . . . . . . . . . . . . 1 . 1 . 1 . 1 . . 1 . 2 . Alert | -11 -10 -10 -9 -9 -8 -7 -7 -7 -7 -6 -6 -6 -6 -6 -6 -6 -5 -5 -5 -5 -5 -4 -4 -4 -4 -4 -3 -3 -2 -1 ------- Run | Yrd Mat Min Mat Min Mat Fac Low Low Zio Pro Fac Was Fac Low Low Dat Pro Fac Upp Upp Zhi Pro Fac Ext Cet Arc Res Tes Res Acc Peak Influence 1203 | . 390 237 516 276 485 274 . . . . 334 127 91 . . . . 524 . . . . 175 287 84 245 148 700 673 1203 Initial 400 | . . 112 49 186 21 135 . . . . 60 92 . . . . . 18 . . . . 25 60 52 33 . 42 393 400 Average 213 | . 248 160 282 110 289 160 . . . . 171 51 30 . . . . 379 . . . . 70 129 72 81 32 258 499 741 Maximum Alert Level 4 | . 1 1 2 1 2 1 . . . . 1 . . . . . . 2 . . . . . 1 . 1 . 3 2 4 Low Security (%) 58 | . 33 61 33 90 14 71 . . . . 53 100 100 . . . . 5 . . . . 100 90 100 89 100 45 . . Level 1 25 | . 66 38 34 9 74 28 . . . . 46 . . . . . . 46 . . . . . 9 . 10 . 30 9 . Level 2 14 | . . . 32 . 11 . . . . . . . . . . . . 48 . . . . . . . . . 22 90 31 Level 3 2 | . . . . . . . . . . . . . . . . . . . . . . . . . . . . 1 . 64 Level 4 . | . . . . . . . . . . . . . . . . . . . . . . . . . . . . . . 4 Level 5 . | . . . . . . . . . . . . . . . . . . . . . . . . . . . . . . . High Security . | . . . . . . . . . . . . . . . . . . . . . . . . . . . . . . . Max Security . | . . . . . . . . . . . . . . . . . . . . . . . . . . . . . . . Squads Dispatched 61 | . 6 . 4 . 6 5 . . . 1 6 . . . . . . 4 . . . 2 2 3 . . 1 11 5 5 Investigation 7 | . 3 . 2 . 1 . . . . . 1 . . . . . . . . . . . . . . . . . . . Extermination 16 | . . . . . . 1 . . . . 4 . . . . . . 1 . . . . 2 . . . 1 4 2 1 Reinforcement 22 | . 3 . 2 . 2 1 . . . . 1 . . . . . . 2 . . . . . 3 . . . 4 1 3 Assault 7 | . . . . . . . . . . 1 . . . . . . . 1 . . . 2 . . . . . . 2 1 Garrison 9 | . . . . . 3 3 . . . . . . . . . . . . . . . . . . . . . 3 . . Intercept . | . . . . . . . . . . . . . . . . . . . . . . . . . . . . . . . Searches Triggered . | . . . . . . . . . . . . . . . . . . . . . . . . . . . . . . . Construction Impeded 4 | . . . . . . . . . . . . . . . . . . . . . . . . 1 . . . . . 3 Haulers Reinforced 2 | . . . . . . . . . . . . . . . . . . 1 . . . . . . . . . 1 . . Active Scanning Responses . | . . . . . . . . . . . . . . . . . . . . . . . . . . . . . . . Cargo Convoy Interrupts 1 | . . . . . . . . . . . . . . . . . . 1 . . . . . . . . . . . . Stealth | -11 -10 -10 -9 -9 -8 -7 -7 -7 -7 -6 -6 -6 -6 -6 -6 -6 -5 -5 -5 -5 -5 -4 -4 -4 -4 -4 -3 -3 -2 -1 --------- Run | Yrd Mat Min Mat Min Mat Fac Low Low Zio Pro Fac Was Fac Low Low Dat Pro Fac Upp Upp Zhi Pro Fac Ext Cet Arc Res Tes Res Acc Distress Signals 18 | . 1 . 3 . 3 . . . . . 3 . 1 . . . . 1 . . . . . 1 1 . . 2 1 1 Communications Jammed 61 | . . . . . . . . . . . . . . . . . . . . . . . 3 1 . . 1 39 17 . Distress Signals 60 | . . . . . . . . . . . . . . . . . . . . . . . 3 1 . . . 39 17 . Times Spotted 507 | . 26 9 52 35 44 9 5 7 . 19 36 4 12 4 . 5 12 19 4 10 . 7 12 33 6 24 11 43 34 25 Peak Tracking Total 17 | . 4 3 7 17 10 3 3 7 . 8 7 1 4 2 . 1 5 5 4 4 . 4 3 4 5 1 6 5 9 8 Tactical Retreats 20 | . 2 1 . 1 4 . . . . . 3 2 . . . 2 . 2 . . . . 1 1 . . . 1 . . Traps | -11 -10 -10 -9 -9 -8 -7 -7 -7 -7 -6 -6 -6 -6 -6 -6 -6 -5 -5 -5 -5 -5 -4 -4 -4 -4 -4 -3 -3 -2 -1 ------- Run | Yrd Mat Min Mat Min Mat Fac Low Low Zio Pro Fac Was Fac Low Low Dat Pro Fac Upp Upp Zhi Pro Fac Ext Cet Arc Res Tes Res Acc Traps Triggered 14 | . 1 . 2 . . 2 . . . . 1 . . . . . . 2 . . . . . 3 . . . 2 1 . Indirectly . | . . . . . . . . . . . . . . . . . . . . . . . . . . . . . . . Trap Hack Attempts . | . . . . . . . . . . . . . . . . . . . . . . . . . . . . . . . Triggered . | . . . . . . . . . . . . . . . . . . . . . . . . . . . . . . . Disarmed . | . . . . . . . . . . . . . . . . . . . . . . . . . . . . . . . Reprogrammed . | . . . . . . . . . . . . . . . . . . . . . . . . . . . . . . . Reused 3 | . . . . . . . . 1 . . . . . . . 2 . . . . . . . . . . . . . . Traps Extracted . | . . . . . . . . . . . . . . . . . . . . . . . . . . . . . . . Installed 6 | . . . . . . . . 1 . . . . . . . 5 . . . . . . . . . . . . . . Triggered 4 | . . . . . . . 2 1 . . . . . . . . . 1 . . . . . . . . . . . . Fabricated Traps 4 | . . . . . . . . . . . . . . . . 4 . . . . . . . . . . . . . . Most Traps Carried 6 | . . . . . . . 1 6 6 . . . . 1 1 1 . . . . . . . . . . . . . . Machines | -11 -10 -10 -9 -9 -8 -7 -7 -7 -7 -6 -6 -6 -6 -6 -6 -6 -5 -5 -5 -5 -5 -4 -4 -4 -4 -4 -3 -3 -2 -1 ---------- Run | Yrd Mat Min Mat Min Mat Fac Low Low Zio Pro Fac Was Fac Low Low Dat Pro Fac Upp Upp Zhi Pro Fac Ext Cet Arc Res Tes Res Acc Machines Disabled 37 | . . . . . 2 . . 1 . . 6 . 1 1 . 1 . 5 . . 1 . . 4 . 4 . 7 1 3 Max in Single Turn 2 | . . . . . 1 . . 1 . . 2 . 1 1 . 1 . 2 . . 1 . . 1 . 1 . 1 1 1 Garrison Access 2 | . . . . . . . . . . . . . . . . . . 1 . . . . . . . . . . 1 . Energy Cycler 1 | . . . . . . . . . . . . . . . . . . . . . . . . . . . . . . 1 Machines Repaired . | . . . . . . . . . . . . . . . . . . . . . . . . . . . . . . . Machines Dismantled . | . . . . . . . . . . . . . . . . . . . . . . . . . . . . . . . Machines Sabotaged . | . . . . . . . . . . . . . . . . . . . . . . . . . . . . . . . Overloaded Fab Kills . | . . . . . . . . . . . . . . . . . . . . . . . . . . . . . . . Hacking | -11 -10 -10 -9 -9 -8 -7 -7 -7 -7 -6 -6 -6 -6 -6 -6 -6 -5 -5 -5 -5 -5 -4 -4 -4 -4 -4 -3 -3 -2 -1 --------- Run | Yrd Mat Min Mat Min Mat Fac Low Low Zio Pro Fac Was Fac Low Low Dat Pro Fac Upp Upp Zhi Pro Fac Ext Cet Arc Res Tes Res Acc Machines Accessed 90 | . 7 1 9 . 5 6 . 1 . . 10 . 1 1 . 3 1 9 . 2 5 . 3 8 2 . 2 5 4 5 Terminals 59 | . 5 1 9 . 4 4 . 1 . . 8 . . . . . 1 4 . . . . 2 8 2 . 2 3 1 4 Fabricators 6 | . . . . . . 1 . . . . 2 . . . . . . 1 . . . . 1 . . . . . 1 . Repair Stations 4 | . . . . . 1 . . . . . . . 1 . . . . . . . . . . . . . . 2 . . Recycling Units 6 | . 2 . . . . 1 . . . . . . . . . . . 2 . . . . . . . . . . 1 . Scanalyzers 1 | . . . . . . . . . . . . . . . . . . 1 . . . . . . . . . . . . Garrison Access 3 | . . . . . . . . . . . . . . . . . . 1 . . . . . . . . . . 1 1 Total Hacks 219 | . 22 2 25 . 14 9 . 7 . . 16 . 2 1 . 20 2 20 . 2 18 . 4 23 4 . 5 7 7 9 Successful 106 | . 11 . 8 . 7 3 . 7 . . 3 . 2 1 . 20 2 10 . 2 18 . . 4 3 . 2 1 1 1 Failed 112 | . 11 2 17 . 6 6 . . . . 13 . . . . . . 10 . . . . 4 19 1 . 3 6 6 8 Catastrophic 34 | . . 1 6 . 1 2 . . . . 5 . . . . . . 4 . . . . 2 3 . . 1 3 1 5 Database Lockouts 1 | . . . . . 1 . . . . . . . . . . . . . . . . . . . . . . . . . Manual 56 | . 11 2 7 . 10 . . . 1 . 4 . . . . . . 9 . . . . . 7 . . 1 . . 4 Terminals 142 | . 17 2 25 . 13 6 . 7 . . 13 . . . . . 2 9 . . . . 2 23 4 . 5 5 1 8 Fabricators 10 | . . . . . . 1 . . . . 3 . . . . . . 3 . . . . 2 . . . . . 1 . Repair Stations 5 | . . . . . 1 . . . . . . . 2 . . . . . . . . . . . . . . 2 . . Recycling Units 12 | . 5 . . . . 2 . . . . . . . . . . . 3 . . . . . . . . . . 2 . Scanalyzers 3 | . . . . . . . . . . . . . . . . . . 3 . . . . . . . . . . . . Garrison Access 6 | . . . . . . . . . . . . . . . . . . 2 . . . . . . . . . . 3 1 Terminal Hacks 80 | . 5 . 8 . 2 1 . 7 . . 2 . . 1 . 20 2 2 . 2 18 . . 3 3 . 2 1 . 1 Record 21 | . . . . . . . . 7 . . . . . . . 2 2 . . . 6 . . . 3 . . . . 1 Part Schematic 13 | . . . . . . . . . . . . . . . . 9 . . . . 4 . . . . . . . . . Robot Schematic 6 | . . . . . . . . . . . . . . . . 6 . . . . . . . . . . . . . . Robot Analysis 8 | . 3 . . . 1 . . . . . . . . . . . . . . . 4 . . . . . . . . . Prototype ID Bank 9 | . . . 1 . . . . . . . . . . . . 3 . . . . 4 . . 1 . . . . . . Open Door 4 | . . . . . . . . . . . . . . 1 . . . . . 2 . . . 1 . . . . . . Branch Access Points 4 | . 1 . . . . 1 . . . . . . . . . . . 1 . . . . . . . . 1 . . . Terminal Index 3 | . . . . . . . . . . . . . . . . . . 1 . . . . . 1 . . . 1 . . Unreport Threat 2 | . . . 1 . . . . . . . . . . . . . . . . . . . . . . . 1 . . . Locate Traps 1 | . . . 1 . . . . . . . . . . . . . . . . . . . . . . . . . . . Transport Status 1 | . . . 1 . . . . . . . . . . . . . . . . . . . . . . . . . . . Hauler Manifests 1 | . . . 1 . . . . . . . . . . . . . . . . . . . . . . . . . . . Registered Prototypes 1 | . . . 1 . . . . . . . . . . . . . . . . . . . . . . . . . . . Zone Layout 6 | . 1 . 2 . 1 . . . . . 2 . . . . . . . . . . . . . . . . . . . Fabricator Hacks 3 | . . . . . . 1 . . . . 1 . . . . . . 1 . . . . . . . . . . . . Network Status 3 | . . . . . . 1 . . . . 1 . . . . . . 1 . . . . . . . . . . . . Repair Station Hacks 2 | . . . . . . . . . . . . . 2 . . . . . . . . . . . . . . . . . Scan Component 1 | . . . . . . . . . . . . . 1 . . . . . . . . . . . . . . . . . Repair 1 | . . . . . . . . . . . . . 1 . . . . . . . . . . . . . . . . . Recycling Unit Hacks 5 | . 2 . . . . 1 . . . . . . . . . . . 2 . . . . . . . . . . . . Retrieve Components 5 | . 2 . . . . 1 . . . . . . . . . . . 2 . . . . . . . . . . . . Scanalyzer 3 | . . . . . . . . . . . . . . . . . . 3 . . . . . . . . . . . . Insert Component 1 | . . . . . . . . . . . . . . . . . . 1 . . . . . . . . . . . . Analyze 2 | . . . . . . . . . . . . . . . . . . 2 . . . . . . . . . . . . Garrison Access Hacks 1 | . . . . . . . . . . . . . . . . . . . . . . . . . . . . . 1 . Seal Access 1 | . . . . . . . . . . . . . . . . . . . . . . . . . . . . . 1 . Unauthorized Hacks 12 | . 4 . . . 5 . . . . . . . . . . . . 2 . . . . . 1 . . . . . . Terminals 7 | . 2 . . . 4 . . . . . . . . . . . . . . . . . . 1 . . . . . . Track 2 | . 1 . . . 1 . . . . . . . . . . . . . . . . . . . . . . . . . Botnet 2 | . . . . . 1 . . . . . . . . . . . . . . . . . . 1 . . . . . . Disrupt 1 | . 1 . . . . . . . . . . . . . . . . . . . . . . . . . . . . . Skim 2 | . . . . . 2 . . . . . . . . . . . . . . . . . . . . . . . . . Fabricators 1 | . . . . . . . . . . . . . . . . . . 1 . . . . . . . . . . . . Haulers 1 | . . . . . . . . . . . . . . . . . . 1 . . . . . . . . . . . . Repair Stations 1 | . . . . . 1 . . . . . . . . . . . . . . . . . . . . . . . . . Patch 1 | . . . . . 1 . . . . . . . . . . . . . . . . . . . . . . . . . Recycling Units 3 | . 2 . . . . . . . . . . . . . . . . 1 . . . . . . . . . . . . Mask 1 | . . . . . . . . . . . . . . . . . . 1 . . . . . . . . . . . . Tunnel 2 | . 2 . . . . . . . . . . . . . . . . . . . . . . . . . . . . . Scanalyzers . | . . . . . . . . . . . . . . . . . . . . . . . . . . . . . . . Garrison Access . | . . . . . . . . . . . . . . . . . . . . . . . . . . . . . . . Data Cores Recovered . | . . . . . . . . . . . . . . . . . . . . . . . . . . . . . . . Used . | . . . . . . . . . . . . . . . . . . . . . . . . . . . . . . . Hacking Detections 72 | . 6 1 9 . 4 4 . . . . 10 . 1 . . . 1 8 . . . . 3 7 2 . 2 5 4 5 Full Trace Events 2 | . . . 1 . . . . . . . 1 . . . . . . . . . . . . . . . . . . . Feedback Events . | . . . . . . . . . . . . . . . . . . . . . . . . . . . . . . . Feedback Blocked . | . . . . . . . . . . . . . . . . . . . . . . . . . . . . . . . Robot Schematics Acquired 7 | . . . . . . . . . . . . . . . . 6 . . . . . . . . . . . 1 . . Robots Built . | . . . . . . . . . . . . . . . . . . . . . . . . . . . . . . . Authchips . | . . . . . . . . . . . . . . . . . . . . . . . . . . . . . . . Time . | . . . . . . . . . . . . . . . . . . . . . . . . . . . . . . . Total Robot Build Rating . | . . . . . . . . . . . . . . . . . . . . . . . . . . . . . . . Part Schematics Acquired 18 | . . . . . . . . . . . . . . . . 9 . 1 . . 4 . . . . . . 4 . . Parts Built . | . . . . . . . . . . . . . . . . . . . . . . . . . . . . . . . Authchips . | . . . . . . . . . . . . . . . . . . . . . . . . . . . . . . . Time . | . . . . . . . . . . . . . . . . . . . . . . . . . . . . . . . Total Part Build Rating . | . . . . . . . . . . . . . . . . . . . . . . . . . . . . . . . Parts Repaired 1 | . . . . . . . . . . . . . 1 . . . . . . . . . . . . . . . . . Time 56 | . . . . . . . . . . . . . 56 . . . . . . . . . . . . . . . . . Parts Recycled . | . . . . . . . . . . . . . . . . . . . . . . . . . . . . . . . Recycled Matter . | . . . . . . . . . . . . . . . . . . . . . . . . . . . . . . . Retrieved Matter . | . . . . . . . . . . . . . . . . . . . . . . . . . . . . . . . Retrieved Components 16 | . 3 . . . . 2 . . . . . . . . . . . 11 . . . . . . . . . . . . Parts Scanalyzed 1 | . . . . . . . . . . . . . . . . . . 1 . . . . . . . . . . . . Part Schematics Acquired 1 | . . . . . . . . . . . . . . . . . . 1 . . . . . . . . . . . . Parts Damaged . | . . . . . . . . . . . . . . . . . . . . . . . . . . . . . . . Bothacking | -11 -10 -10 -9 -9 -8 -7 -7 -7 -7 -6 -6 -6 -6 -6 -6 -6 -5 -5 -5 -5 -5 -4 -4 -4 -4 -4 -3 -3 -2 -1 ------------ Run | Yrd Mat Min Mat Min Mat Fac Low Low Zio Pro Fac Was Fac Low Low Dat Pro Fac Upp Upp Zhi Pro Fac Ext Cet Arc Res Tes Res Acc Used RIF Installer . | . . . . . . . . . . . . . . . . . . . . . . . . . . . . . . . Robots Hacked . | . . . . . . . . . . . . . . . . . . . . . . . . . . . . . . . Non-combat . | . . . . . . . . . . . . . . . . . . . . . . . . . . . . . . . Combat . | . . . . . . . . . . . . . . . . . . . . . . . . . . . . . . . Robot Hacks Applied . | . . . . . . . . . . . . . . . . . . . . . . . . . . . . . . . Relay Couplers Released 8 | . . . . . . . . . . . 4 . . . . . . 1 . . . . . . . . . . 3 . Machine Destruction 4 | . . . . . . . . . . . . . . . . . . 1 . . . . . . . . . . 3 . Programmers 4 | . . . . . . . . . . . 4 . . . . . . . . . . . . . . . . . . . Fabnet Peak Effective % . | . . . . . . . . . . . . . . . . . . . . . . . . . . . . . . . Robots Rewired 16 | . . . . . . . . . . 2 . . . . . . . . . . . . . 14 . . . . . . Allies Hacked . | . . . . . . . . . . . . . . . . . . . . . . . . . . . . . . . Hacks Repelled . | . . . . . . . . . . . . . . . . . . . . . . . . . . . . . . . Allies | -11 -10 -10 -9 -9 -8 -7 -7 -7 -7 -6 -6 -6 -6 -6 -6 -6 -5 -5 -5 -5 -5 -4 -4 -4 -4 -4 -3 -3 -2 -1 -------- Run | Yrd Mat Min Mat Min Mat Fac Low Low Zio Pro Fac Was Fac Low Low Dat Pro Fac Upp Upp Zhi Pro Fac Ext Cet Arc Res Tes Res Acc Total Allies 25 | . . . . 1 . . . . 7 2 . . . . . . . . . . . . . 15 . . . . . . Largest Group 7 | . . . . 1 . . . . 7 7 4 . . . . . . . . . . . . 5 4 . . . . . Highest-Rated Group 222 | . . . . 31 . . . . 168 168 103 . . . . . . . . . . . . 222 142 . . . . . Highest-Rated Ally 51 | . . . . 31 . . . . 39 39 32 . . . . . . . . . . . . 51 46 . . . . . Total Orders . | . . . . . . . . . . . . . . . . . . . . . . . . . . . . . . . Ally Attacks 204 | . . . . 4 . . . . . 91 27 . . . . . . . . . . . . 78 4 . . . . . Total Damage 3857 | . . . . 42 . . . . . 1208 449 . . . . . . . . . . . . 2068 90 . . . . . Kills 27 | . . . . 2 . . . . . 12 3 . . . . . . . . . . . . 10 . . . . . . Allies Corrupted . | . . . . . . . . . . . . . . . . . . . . . . . . . . . . . . . Allies Melted . | . . . . . . . . . . . . . . . . . . . . . . . . . . . . . . . Intel | -11 -10 -10 -9 -9 -8 -7 -7 -7 -7 -6 -6 -6 -6 -6 -6 -6 -5 -5 -5 -5 -5 -4 -4 -4 -4 -4 -3 -3 -2 -1 ------- Run | Yrd Mat Min Mat Min Mat Fac Low Low Zio Pro Fac Was Fac Low Low Dat Pro Fac Upp Upp Zhi Pro Fac Ext Cet Arc Res Tes Res Acc Robot Analysis Total 8 | . 3 . . . 1 . . . . . . . . . . . . . . . 4 . . . . . . . . . Derelict Logs Recovered 13 | . . 2 . 1 . . . 1 1 2 . . . 2 1 . . . . 1 . 2 . . . . . . . . Drone Launches . | . . . . . . . . . . . . . . . . . . . . . . . . . . . . . . . Drone Recoveries . | . . . . . . . . . . . . . . . . . . . . . . . . . . . . . . . Exploration | -11 -10 -10 -9 -9 -8 -7 -7 -7 -7 -6 -6 -6 -6 -6 -6 -6 -5 -5 -5 -5 -5 -4 -4 -4 -4 -4 -3 -3 -2 -1 ------------- Run | Yrd Mat Min Mat Min Mat Fac Low Low Zio Pro Fac Was Fac Low Low Dat Pro Fac Upp Upp Zhi Pro Fac Ext Cet Arc Res Tes Res Acc Turns Passed 32568 | . 1071 540 1869 1113 1265 612 1301 1344 2124 991 1488 929 543 1144 804 846 938 1250 869 1085 319 1108 1053 2624 389 1157 668 1437 951 736 Spaces Moved 16371 | 1 508 270 733 456 449 337 783 794 1103 548 1358 751 241 643 501 342 524 646 527 624 172 398 393 898 161 356 318 608 476 452 Core 522 | . . . . . . . . . . . 51 . . . . . . . . . . . . . . . . . 19 452 Treads 13806 | . 72 270 733 456 449 337 783 794 1103 548 . 452 241 643 501 342 524 646 527 624 172 398 393 898 161 356 318 608 457 . Legs 437 | 1 436 . . . . . . . . . . . . . . . . . . . . . . . . . . . . . Wheels 590 | . . . . . . . . . . . 590 . . . . . . . . . . . . . . . . . . . Hover . | . . . . . . . . . . . . . . . . . . . . . . . . . . . . . . . Flight 1016 | . . . . . . . . . . . 717 299 . . . . . . . . . . . . . . . . . . Fastest Speed 34 | 120 120 160 160 225 155 156 160 160 160 160 34 34 160 160 160 160 160 160 160 160 166 166 166 160 165 247 166 166 50 50 Average Speed 161 | 120 163 160 209 226 188 159 160 160 160 160 92 110 160 160 160 160 160 160 160 163 166 166 223 221 197 247 166 166 159 50 Slowest Speed 305 | 120 190 160 305 305 240 160 160 160 160 160 180 160 160 160 160 160 160 160 160 166 166 166 250 246 247 249 166 166 250 50 Overloaded Moves . | . . . . . . . . . . . . . . . . . . . . . . . . . . . . . . . Propulsion Burnouts . | . . . . . . . . . . . . . . . . . . . . . . . . . . . . . . . Robots Hopped . | . . . . . . . . . . . . . . . . . . . . . . . . . . . . . . . Cave-ins Triggered . | . . . . . . . . . . . . . . . . . . . . . . . . . . . . . . . Teleports 1 | . . . . . . . . . . . . . . . . . . . . . . . . . . . . . 1 . Exploration Rate (%) 59 | 2 92 75 84 80 35 13 83 67 89 75 44 97 11 77 83 82 73 24 67 90 63 68 11 86 66 99 11 78 19 14 Regions Visited 30 Branch Regions 18 Pre-discovered Areas 9 | . 2 . . 1 . . . . 1 . . . . . 1 1 . . . . 3 . . . . . . . . . Known Exits Taken 12 | . 1 . . 1 . 1 . 1 1 1 . . 1 . . . 1 1 . . . 1 1 . . . 1 . . . Unknown Exits Taken 16 | 1 . 1 1 . 1 . 1 . . . . . . 1 1 1 . . 1 1 1 . . 1 1 1 . 1 1 . Scrap Searched 24 | . . . . 1 . . 2 1 5 1 . . . 1 3 . 3 . . 4 . 3 . . . . . . . . Spaces Dug 172 | . . . . . . . . 2 . 13 5 . 1 13 . . 13 7 14 . . . 18 17 . . 13 31 25 . Terrain Destroyed 1041 | . . . 6 1 2 3 3 2 . 85 69 27 2 14 1 . 50 66 45 60 . 91 34 50 . 12 23 55 111 229 Melee 18 | . . . . . . . . . . . 4 . 1 13 . . . . . . . . . . . . . . . . Projectile 266 | . . . 6 1 2 3 3 2 . 2 11 . 1 1 1 . 8 21 3 4 . 9 34 33 . 12 20 55 34 . AOE 757 | . . . . . . . . . . 83 54 27 . . . . 42 45 42 56 . 82 . 17 . . 3 . 77 229 Terrain Rammed . | . . . . . . . . . . . . . . . . . . . . . . . . . . . . . . . Walls Destroyed . | . . . . . . . . . . . . . . . . . . . . . . . . . . . . . . . Machines Disabled . | . . . . . . . . . . . . . . . . . . . . . . . . . . . . . . . Actions | -11 -10 -10 -9 -9 -8 -7 -7 -7 -7 -6 -6 -6 -6 -6 -6 -6 -5 -5 -5 -5 -5 -4 -4 -4 -4 -4 -3 -3 -2 -1 --------- Run | Yrd Mat Min Mat Min Mat Fac Low Low Zio Pro Fac Was Fac Low Low Dat Pro Fac Upp Upp Zhi Pro Fac Ext Cet Arc Res Tes Res Acc Total 20909 | . 610 327 902 491 644 377 811 839 1466 633 1506 845 351 703 504 603 587 792 542 670 200 814 473 1397 217 559 432 1014 662 938 Wait 2266 | . 6 25 18 . 11 . . . 334 44 46 56 73 14 . 189 18 36 5 13 4 393 16 198 10 104 32 133 37 451 Move 16341 | . 507 269 732 455 448 336 782 793 1102 547 1358 750 240 642 500 341 523 645 526 623 171 397 392 897 160 355 317 607 475 451 Hop . | . . . . . . . . . . . . . . . . . . . . . . . . . . . . . . . Pick Up 215 | . 9 1 22 3 16 10 3 8 8 2 13 14 2 4 1 21 5 11 . 5 2 2 3 9 8 10 5 9 9 . Fast Attach 130 | . 1 . 11 1 9 2 5 . 5 1 15 8 1 5 1 3 2 12 . 3 8 . 3 15 1 6 5 1 5 1 Attach 130 | . 3 1 6 8 10 3 1 . . 6 7 . . 2 . 7 4 5 1 5 1 3 2 10 8 4 4 8 17 4 Detach 34 | . . . 2 . . . . . 1 . 2 2 . . . 1 1 1 1 1 . 2 . 4 5 1 3 2 2 3 Swap 110 | . 3 1 7 1 2 2 3 4 2 1 1 4 2 3 . 1 13 8 . . . 1 2 9 4 . 13 16 7 . Drop 194 | . 2 . 22 1 1 7 8 8 14 . 18 8 1 3 2 9 5 19 . 7 8 . . 11 3 13 7 5 10 2 Fire 1209 | . 77 28 80 20 134 17 9 25 . 13 41 2 30 15 . . 16 54 9 13 6 16 54 67 18 66 43 232 100 24 Melee 47 | . . . . . . . . . . . 4 . 2 15 . 26 . . . . . . . . . . . . . . Ram 1 | . . . . . . . . . . . 1 . . . . . . . . . . . . . . . . . . . Kick 2 | . 2 . . . . . . . . . . . . . . . . . . . . . . . . . . . . . Crush 29 | . . 2 2 2 13 . . . . . . . . . . . . 1 . . . . 1 2 . . 3 1 . 2 Escape Stasis 6 | . . . . . . . . . . . . . . . . . . . . . . . . 6 . . . . . . Rewire 189 | . . . . . . . . . . 19 . 1 . . . . . . . . . . . 169 . . . . . . Trap 6 | . . . . . . . . 1 . . . . . . . 5 . . . . . . . . . . . . . . Miscellaneous . | . . . . . . . . . . . . . . . . . . . . . . . . . . . . . . . Route ------- -11/Scrapyard -10/Materials (discovered 4 exits: *Mat x3 / *Min) -10/Mines (discovered 2 exits: *Mat x2) -9/Materials (discovered 4 exits: *Mat x3 / [*Min]) -9/Mines (discovered 3 exits: *Mat x2 / *Zio) -8/Materials -7/Factory (discovered 3 exits: *Fac / *Low x2) -7/Lower Caves -7/Lower Caves (discovered 2 exits: *Fac / *Zio) -7/Zion -6/Proximity Caves -6/Factory (discovered 3 exits: *Fac x3) -6/Waste -6/Factory -6/Lower Caves -6/Lower Caves (discovered 2 exits: *Fac / *Dat) -6/Data Miner -5/Proximity Caves -5/Factory (discovered 3 exits: Fac / *Upp x2) -5/Upper Caves -5/Upper Caves (discovered 2 exits: *Fac / *Zhi) -5/Zhirov -4/Proximity Caves -4/Factory (discovered 3 exits: *Res / *Ext x2) -4/Extension (discovered 2 exits: *Res / *Cet) -4/Cetus -4/Archives (discovered 3 exits: *Res / [*Hub x2]) -3/Research (discovered 4 exits: *Res / *Arm / *Tes x2) -3/Testing -2/Research -1/Access To Epsilon Eridani History --------- Turn | Location | Event 1 | -11/Scrapyard | Discovered new exit (range 0) 1 | -11/Scrapyard | Entered Materials 276 | -10/Materials | Discovered new exit (range 11) 306 | -10/Materials | Build established: Mutant 396 | -10/Materials | Discovered new exit (range 10) 595 | -10/Materials | Identified exit to Mines 742 | -10/Materials | Core integrity fell below 50% 783 | -10/Materials | Discovered new exit (range 16) 964 | -10/Materials | Lost 3 parts (1p1n1w) 1072 | -10/Materials | Entered Mines 1096 | -10/Mines | Discovered new exit (range 6) 1103 | -10/Mines | Learned 2 Materials zone layouts 1328 | -10/Mines | Found a hidden stash of uninstalled traps 1444 | -10/Mines | Core integrity fell below 20% 1562 | -10/Mines | A weapon hastily lodged in a ceiling crevice suddenly fell to the ground 1574 | -10/Mines | Learned Materials security intel 1593 | -10/Mines | Discovered new exit (range 15) 1612 | -10/Mines | Entered Materials 1612 | -9/Materials | Evolved 2 slots: Utility x1, Weapon x1 1613 | -9/Materials | Identified exit to Materials 1911 | -9/Materials | Build established: Gunner 2051 | -9/Materials | Discovered exit to Materials (range 12) 2376 | -9/Materials | Build established: Scavenger-Tank 2839 | -9/Materials | Discovered exit to Materials (range 5) 3172 | -9/Materials | Build established: Scavenger-Gunner 3364 | -9/Materials | Discovered new exit (range 12) 3481 | -9/Materials | Entered Mines 3561 | -9/Mines | Deemed a non-threat by the Exiles lab entrance 3722 | -9/Mines | Build established: Tank 3786 | -9/Mines | Discovered exit to Materials (range 8) 3824 | -9/Mines | Learned Materials trap positions 3940 | -9/Mines | A Derelict revealed a hidden shortcut to a safe place 4092 | -9/Mines | Found a damaged Exp. Sensor Array with a note attached 4096 | -9/Mines | Found Prototype Device 4225 | -9/Mines | Discovered exit to Materials (range 9) 4240 | -9/Mines | Escorted by a lone wolf Derelict 4260 | -9/Mines | Learned location of Storage (-8) 4412 | -9/Mines | Assembled infested the area 4468 | -9/Mines | Core integrity fell below 50% 4500 | -9/Mines | Lost 10 parts (1p2n2u5w) 4594 | -9/Mines | Entered Materials 4594 | -8/Materials | Evolved 2 slots: Propulsion x1, Utility x1 4595 | -8/Materials | Loaded intel: 20 trap records 4794 | -8/Materials | Destroyed 8 combat bots 4849 | -8/Materials | Discovered new exit (range 3) 4906 | -8/Materials | Central database locked down 4946 | -8/Materials | Garrison activated, responded to threat 5016 | -8/Materials | Destroyed 7 combat bots 5062 | -8/Materials | Lost 9 parts (1p3n2u3w) 5254 | -8/Materials | Core integrity fell below 50% 5271 | -8/Materials | Build established: Scavenger-Mutant 5303 | -8/Materials | Lost 3 parts (2n1w) 5859 | -8/Materials | Entered Factory 5859 | -7/Factory | Evolved 2 slots: Propulsion x1, Utility x1 6069 | -7/Factory | Discovered new exit (range 6) 6085 | -7/Factory | Identified exit to Lower Caves 6157 | -7/Factory | Build established: Scavenger-Tank 6171 | -7/Factory | Garrison activated, responded to threat 6471 | -7/Factory | Entered Lower Caves 6472 | -7/Lower Caves | Identified Exp. Sensor Array 6531 | -7/Lower Caves | Build established: Scavenger-Gunner 6549 | -7/Lower Caves | Attracted the attention of an 0b10 checkpoint 7556 | -7/Lower Caves | Discovered new exit (range 5) 7772 | -7/Lower Caves | Entered another Lower Caves area 8044 | -7/Lower Caves | Discovered new exit (range 16) 8634 | -7/Lower Caves | Encountered a Warlord checkpoint 8670 | -7/Lower Caves | Learned Factory terminal intel 8757 | -7/Lower Caves | Attracted the attention of an 0b10 base 8788 | -7/Lower Caves | Learned Factory security intel 8788 | -7/Lower Caves | Learned Armory stockpile data 8788 | -7/Lower Caves | Learned Factory trap positions 8788 | -7/Lower Caves | Identified exit to Zion 8788 | -7/Lower Caves | Learned 8 Research zone layouts 9116 | -7/Lower Caves | Entered Zion 9131 | -7/Zion | Learned Factory garrison access intel 9200 | -7/Zion | System corruption cleaned by Quarantine Array 9264 | -7/Zion | Gained Derelict followers 9292 | -7/Zion | Discovered new exit (range 10) 9384 | -7/Zion | Found Unknown Piercing Weapon 9388 | -7/Zion | Identified CR-A16's Pointy Stick 9588 | -7/Zion | Received a hallucinogenic algorithm 9881 | -7/Zion | Found Prototype Device 9881 | -7/Zion | Identified Bomb Factory No. 2 10036 | -7/Zion | Found Prototype Device 10036 | -7/Zion | Identified Mobile Refinery Mk. CCLXVII 10176 | -7/Zion | Met Imprinter 11203 | -7/Zion | Identified exit to Proximity Caves 11240 | -7/Zion | Entered Proximity Caves 11240 | -6/Proximity Caves | Accompanied by 7 allies 11564 | -6/Proximity Caves | Build established: Scavenger-Skirmisher 11886 | -6/Proximity Caves | Attracted the attention of an 0b10 outpost 11950 | -6/Proximity Caves | Lost 6 parts (3n2u1w) 12042 | -6/Proximity Caves | Attracted the attention of an 0b10 checkpoint 12136 | -6/Proximity Caves | Discovered new exit (range 14) 12174 | -6/Proximity Caves | Identified exit to Factory 12231 | -6/Proximity Caves | Entered Factory 12231 | -6/Factory | Accompanied by 4 allies 12231 | -6/Factory | Evolved 2 slots: Power x1, Utility x1 12232 | -6/Factory | Loaded intel: 114 trap records 12234 | -6/Factory | Loaded intel: 26 terminal locations 12235 | -6/Factory | Loaded intel: 4 garrison access locations 12729 | -6/Factory | Discovered new exit (range 15) 12755 | -6/Factory | Identified exit to Factory 12909 | -6/Factory | Lost 4 parts (1p1n1u1w) 13191 | -6/Factory | Build established: Scavenger-Mutant 13287 | -6/Factory | Spotted B-75 Beast 13361 | -6/Factory | Lost 4 parts (3n1u) 13370 | -6/Factory | Destroyed B-75 Beast 13509 | -6/Factory | Discovered exit to Factory (range 14) 13637 | -6/Factory | Discovered exit to Factory (range 15) 13690 | -6/Factory | Build established: Scout 13719 | -6/Factory | Sucked down chute 13719 | -6/Factory | Entered Waste 13719 | -6/Waste | The area was eerily silent 13729 | -6/Waste | A Compactor rumbled back to life 13729 | -6/Waste | Spotted C-40 Crusher 13792 | -6/Waste | Discovered new exit (range 12) 13847 | -6/Waste | Destroyed C-40 Crusher 14141 | -6/Waste | Build established: Mutant 14248 | -6/Waste | Found Damper Plating 14479 | -6/Waste | Identified exit to Factory 14648 | -6/Waste | Entered Factory 14664 | -6/Factory | Build established: Assassin 14764 | -6/Factory | Repaired Lyr. Heavy Armor Plating 14967 | -6/Factory | Discovered new exit (range 6) 14972 | -6/Factory | Identified exit to Lower Caves 15191 | -6/Factory | Entered Lower Caves 15305 | -6/Lower Caves | Attacked by a delusional Derelict stockpiling parts 15311 | -6/Lower Caves | System corruption reached 10% 15458 | -6/Lower Caves | Learned location of 1 exit from Factory 15613 | -6/Lower Caves | Build established: Scavenger-Mutant 15700 | -6/Lower Caves | Learned Factory stockpile data 16237 | -6/Lower Caves | Discovered new exit (range 8) 16335 | -6/Lower Caves | Entered another Lower Caves area 16377 | -6/Lower Caves | Learned location of Extension (-4) 16407 | -6/Lower Caves | Discovered exit to Factory (range 19) 16801 | -6/Lower Caves | Encountered a Warlord checkpoint 17093 | -6/Lower Caves | Discovered new exit (range 9) 17139 | -6/Lower Caves | Entered Data Miner 17143 | -6/Data Miner | Discovered new exit (range 6) 17223 | -6/Data Miner | Met Data Miner 17389 | -6/Data Miner | Learned location of Section 7 (-2) 17389 | -6/Data Miner | Acquired the access code to Warlord's prototype stash 17415 | -6/Data Miner | Received God Mode back door access code from Data Miner 17447 | -6/Data Miner | Build established: Scavenger-Gladiator 17487 | -6/Data Miner | Data Conduit disabled 17750 | -6/Data Miner | Lost 3 parts (2n1u) 17985 | -6/Data Miner | Entered Proximity Caves 18119 | -5/Proximity Caves | Attracted the attention of an 0b10 checkpoint 18409 | -5/Proximity Caves | Build established: Scavenger-Gunner 18765 | -5/Proximity Caves | Discovered exit to Factory (range 7) 18840 | -5/Proximity Caves | Spotted B-75 Beast 18894 | -5/Proximity Caves | Destroyed B-75 Beast 18923 | -5/Proximity Caves | Entered Factory 18923 | -5/Factory | Evolved 2 slots: Utility x2 18924 | -5/Factory | Identified exit to Factory 19416 | -5/Factory | Build established: Scavenger-Tank 19785 | -5/Factory | Identified exit to Upper Caves 19876 | -5/Factory | Cargo convoy interrupted 20117 | -5/Factory | Build established: Scavenger-Mutant 20173 | -5/Factory | Entered Upper Caves 20777 | -5/Upper Caves | Build established: Scavenger-Tank 20976 | -5/Upper Caves | Discovered new exit (range 5) 21042 | -5/Upper Caves | Entered another Upper Caves area 21111 | -5/Upper Caves | Discovered exit to Factory (range 22) 21112 | -5/Upper Caves | Attracted the attention of an 0b10 checkpoint 21922 | -5/Upper Caves | Build established: Scavenger-Mutant 21939 | -5/Upper Caves | Discovered new exit (range 5) 22127 | -5/Upper Caves | Entered Zhirov 22127 | -5/Zhirov | Discovered new exit (range 3) 22157 | -5/Zhirov | Met Zhirov 22194 | -5/Zhirov | Learned location of Quarantine (-2) 22194 | -5/Zhirov | Learned location of Testing (-3) 22219 | -5/Zhirov | Zhirov requested help retrieving the SGEMP Prototype 22245 | -5/Zhirov | Found Alien Artifact 22265 | -5/Zhirov | Found Alien Artifact 22265 | -5/Zhirov | Identified Integrated Reactor 22265 | -5/Zhirov | Installed Integrated Reactor, increased core energy generation (+10) 22446 | -5/Zhirov | Entered Proximity Caves 22571 | -4/Proximity Caves | Derelict sapper outpost attacked 22832 | -4/Proximity Caves | Lost 4 allies 23205 | -4/Proximity Caves | Learned location of 1 exit from Research 23554 | -4/Proximity Caves | Entered Factory 23554 | -4/Factory | Evolved 2 slots: Propulsion x1, Utility x1 23555 | -4/Factory | Identified exit to Extension 23707 | -4/Factory | Spotted B-86 Titan 24077 | -4/Factory | Build established: Derelict-Gunner 24096 | -4/Factory | Discovered new exit (range 21) 24607 | -4/Factory | Entered Extension 24689 | -4/Extension | Rescued a captive Derelict 24703 | -4/Extension | Build established: Scavenger-Gunner 25121 | -4/Extension | Build established: Scavenger-Mutant 25304 | -4/Extension | Spotted B-86 Titan 25376 | -4/Extension | Lost 7 allies 25399 | -4/Extension | Destroyed B-86 Titan 25623 | -4/Extension | Build established: Scavenger-Gunner 25703 | -4/Extension | Lost 4 parts (1p3u) 25787 | -4/Extension | Warlord forces began an assault 25870 | -4/Extension | Spotted B-86 Titan 25887 | -4/Extension | Destroyed B-86 Titan 26003 | -4/Extension | Build established: Scavenger-Tank 26411 | -4/Extension | Lost 3 parts (1n2w) 26629 | -4/Extension | Build established: Scavenger-Mutant 27095 | -4/Extension | Discovered new exit (range 10) 27096 | -4/Extension | Discovered new exit (range 6) 27231 | -4/Extension | Entered Cetus 27231 | -4/Cetus | Accompanied by 4 allies 27257 | -4/Cetus | Spotted Cetus Guard 27257 | -4/Cetus | Spotted Cetus Guard 27260 | -4/Cetus | Spotted Cetus Guard 27264 | -4/Cetus | Spotted Cetus Guard 27282 | -4/Cetus | Destroyed Cetus Guard 27288 | -4/Cetus | Destroyed Cetus Guard 27294 | -4/Cetus | Destroyed Cetus Guard 27307 | -4/Cetus | Lost 4 allies 27317 | -4/Cetus | Destroyed Cetus Guard 27319 | -4/Cetus | Lost 3 parts (1n2u) 27562 | -4/Cetus | Discovered new exit (range 22) 27620 | -4/Cetus | Entered Archives 27743 | -4/Archives | Unable to access archive contents 27760 | -4/Archives | Discovered new exit (range 15) 27804 | -4/Archives | Discovered new exit (range 16) 27912 | -4/Archives | Build established: Scavenger-Tank 27971 | -4/Archives | Discovered new exit (range 22) 28759 | -4/Archives | System corruption reached 10% 28777 | -4/Archives | Entered Research 28777 | -3/Research | Evolved 2 slots: Propulsion x1, Utility x1 28778 | -3/Research | Identified exit to Testing 28810 | -3/Research | Spotted B-86 Titan 28833 | -3/Research | Destroyed B-86 Titan 28866 | -3/Research | Identified exit to Armory 28953 | -3/Research | Found Unknown Device 28953 | -3/Research | Identified Quantum Capacitor 29291 | -3/Research | Discovered new exit (range 12) 29445 | -3/Research | Entered Testing 29618 | -3/Testing | Discovered new exit (range 21) 29743 | -3/Testing | Build established: Scavenger-Mutant 30333 | -3/Testing | Scanned by Researcher 30472 | -3/Testing | System corruption reached 10% 30574 | -3/Testing | Garrison activated, responded to threat 30882 | -3/Testing | Entered Research 30882 | -2/Research | Evolved 2 slots: Power x1, Utility x1 31178 | -2/Research | First assault squad dispatched 31214 | -2/Research | Lost 3 parts (2n1u) 31275 | -2/Research | System corruption reached 10% 31307 | -2/Research | Lost 5 parts (1p4u) 31477 | -2/Research | Found Quantum Capacitor 31524 | -2/Research | Spotted B-90 Cyclops 31542 | -2/Research | Identified Transdimensional Reconstructor 31542 | -2/Research | Warped through subspace 31572 | -2/Research | Lost 5 parts (1p1n3w) 31809 | -2/Research | Core integrity fell below 50% 31829 | -2/Research | Discovered new exit (range 9) 31833 | -2/Research | Entered Access 31833 | -1/Access | Evolved 2 slots: Utility x2 31843 | -1/Access | Energy Cycler disabled 31859 | -1/Access | Lost 4 parts (3u1w) 31866 | -1/Access | Build established: Mutant 31939 | -1/Access | Spotted B-99 Colossus 31940 | -1/Access | Spotted B-99 Colossus 32062 | -1/Access | Discovered new exit (range 6) 32083 | -1/Access | First assault squad dispatched 32569 | *** | Escaped! Last Messages --------------- 32559_ U-05 Engineer lays Concrete. 32560_ U-05 Engineer builds a Wall. 32560_ U-05 Engineer lays Concrete. 32562_ Penetrated by Slug. 32562_ U-05 Engineer lays Concrete. 32563_ U-05 Engineer builds a Wall. 32563_ U-05 Engineer lays Concrete. 32565_ The unstable cave ceiling collapses. 32565_ U-05 Engineer lays Concrete. 32565_ Penetrated by Slug. 32565_ Lrn. Sensor Array destroyed. 32565_ U-05 Engineer lays Concrete. 32565_ U-05 Engineer builds a Wall. 32567_ U-05 Engineer lays Concrete. 32568_ U-05 Engineer builds a Wall. 32568_ U-05 Engineer lays Concrete. 32568_ Slug penetrates Earth. 32568_ Penetrated by Slug. 32568_ U-05 Engineer builds a Wall. 32569_ U-05 Engineer lays Concrete. Map ----- +----------------------------------------------------+ | ?????????????# #??????????????????????? | | ?????????????# #??????????????????????? | | ?????????????#] #??????????????????????? | | ????????###########+##########+######????????????? | | ???? ?????????? | | ???? ?????????? | | ???????########### #####+##########?????????????? | | ?????????????????# # #????????????? | | ?????????????????# # % #????????????? | | ?????????????????# # """""" #????????????? | | ???? ???######## # ""S""" #????????????? | | ???? ??# # """ #????????????? | | ??? ??# # #????????????? | | ??? ?# ######## #????????????? | | ???? + #??###?# #????????????? | | ????? #### ### ? #????????????? | | ??????? # ?????? ?????????????? | | ???????## #########??????????????????????? | | ??????## #### ## #??????????????????????????? | | ??????# ####### ##########??????????????????? | | ??????# # "??????????????????? | | ???????# ## "?????? ??????????? | | ????????# # "????? ###+##### | | ??? ## "????? | | ? # "" "???? | | ? " # @" "???? | | ????? "? #u "???? | | ???? ??? #u u "????? ######### | | ??????????# "?????????????????? | | ??????????# u "????????????????? | | ??????????# u# ## ##########???????????????? | | ??????????# # ###???????????????????????# | | ??????????# ## ??????????????????????????# | | ??????????# # ???????????????????????????# | | ??????????# #?# ????????????????????????????# | | ??????????+ ??#?????????????????????????????# | | ??????????# ????????????????????????????????# | | ??????????# ????????????????????????????????# | | ?????????????????????????????????????????????# | | ?????????????????????????????????????????????# | | ???????????????????????????????????????????????### | | ?????????????????????????????????????????????????? | | ?????????????????????????????????????????????????? | | ?????????????????????????????????????????????????? | | ?????????????????????????????????????????????????? | | ?????????????????????????????????????????????????? | | ?????????????????????????????????????????????????? | | ?????????????????????????????????????????????????? | | ?????????????????????????????????????????????????? | | ?????????????????????????????????????????????????? | +----------------------------------------------------+ Best States ------------- Heat Dissipation 111 Coolant Potential 120 Energy Generation 69 Energy Capacity 1325 Matter Stores 500 Matter Capacity 500 Sight Range 22 Robot Scan Range 20 Terrain Scan Range 20 Terrain Scan Density 10 Jamming Range 16 Cloak Strength 3 Armor Coverage 2100 Resistance: KI 30 Resistance: TH 15 Evasion (%) 63 Melee Accuracy 12 Core Analysis 6 Recoil Reduction 6 Particle Charging 25 Offensive Hacking 36 Defensive Hacking 22 Item Schematics ----------------- Combat Drone Bay | -6/Data Miner | Free Lgt. Regenerative Plating | -6/Data Miner | Free Cld. Gravmag System | -6/Data Miner | Free Prc. Matter Filter | -6/Data Miner | Free Hvy. Proton Missile Launcher | -6/Data Miner | Free Imp. Linear Gravjet | -6/Data Miner | Free Adv. Thermal Shield | -6/Data Miner | Free Hyp. Mass Driver | -6/Data Miner | Free Impulse Thruster Array | -6/Data Miner | Free Hvy. Treads | -5/Factory | Scanalyzed Assault Drone Bay | -5/Zhirov | Free Exp. Heat Sink | -5/Zhirov | Free Exp. Optical Array | -5/Zhirov | Free Imp. Arc Thrower | -5/Zhirov | Free Hvy. Wave Gun | -3/Testing | Archive Plasma Lance | -3/Testing | Archive Coolant Network | -3/Testing | Archive Exp. Matter Compressor | -3/Testing | Archive Robot Schematics ------------------ B-60 Warrior | -6/Data Miner | Free S-27 Virus | -6/Data Miner | Free P-60 Hacker | -6/Data Miner | Free A-27 Freighter | -6/Data Miner | Free G-50 Soldier | -6/Data Miner | Free X-72 Disruptor | -6/Data Miner | Free G-67 Veteran | -3/Testing | Archive Fabricated ------------ Nothing Alien Tech Used ----------------- Integrated Reactor Transdimensional Reconstructor Achievements -------------- Sniper Challenges ------------ None Game ------ Seed SlugDynamicFlamer Manual? 0 Play Time 05:09:23 Cumulative 192.4 hours Start 2024.09.04 @ 17:10:03 End 2024.09.06 @ 19:58:17 Sessions 11 Manual Loads 0 Difficulty Rogue Special Mode None Game No. 134 Rogue 134 Adventurer 0 Explorer 0 Win Type 0 Total 9 Types 3/0/4/1/0/0/1/0/0 Lore% 72 Gallery% 70 Achievement% 63 Wizard Run 0 Options --------- Layout 0 ASCII 0 Keyboard 0 Movement Arrows Keybinds 0 Fullscreen 2 Font 18/SmallcapsGlow Map View 76x50 Zoom Use 0% Tactical HUD 1 Map Filters NONE Filters NONE Steam 1 RUN: e079b4ff-b437-4798-8a25-3fd104c6f33b